[Event "Polish Youth G16 Championship 2023"]
[Site "Jastrzebia Gora"]
[Date "2023.03.17"]
[Round "7.13"]
[White "Bandyk, Joanna"]
[Black "Nieckarz, Maja"]
[Result "0-1"]
[ECO "B71"]
[WhiteElo "1459"]
[BlackElo "1493"]
[Annotator "NA RC COMBH"]
[PlyCount "98"]
[EventDate "2023.03.11"]
[EventType "swiss"]
[EventCountry "POL"]
[SourceTitle "playchess.com"]
[Source "ChessBase"]
[SourceQuality "1"]
[TimeControl "40/5400+30:1800+30"]

1. e4 {[%emt 0:00:03]} c5 {[%emt 0:00:03]} 2. Nf3 {[%emt 0:00:06]} d6 {[%emt 0:00:05]} 3. d4 {[%emt 0:00:05]} cxd4 {[%emt 0:00:03]} 4. Nxd4 {[%emt 0:00:09]} Nf6 {[%emt 0:00:05]} 5. Nc3 {[%emt 0:00:14]} g6 {[%emt 0:00:05]} 6. f4 {[%emt 0:00:10]} Nc6 {[%emt 0:01:05]} 7. Be2 {[%emt 0:01:52]} Bd7 {[%emt 0:01:35]} 8. Be3 {[%emt 0:01:09]} a6 {[%emt 0:03:39]} 9. O-O {[%emt 0:07:25]} e6 {[%emt 0:00:43]} 10. Bf3 {[%emt 0:01:24]} Qc7 {[%emt 0:05:32]} 11. Nxc6 {[%emt 0:14:00]} Bxc6 {[%emt 0:04:16]} 12. e5 {[%emt 0:03:14]} dxe5 {[%emt 0:02:36]} 13. fxe5 {[%emt 0:01:45]} Nd7 {[%emt 0:00:40]} 14. Bxc6 {[%emt 0:00:57]} bxc6 {[%emt 0:00:18]} 15. Qf3 {[%emt 0:04:24]} Nxe5 {[%emt 0:01:03]} 16. Qf6 {[%emt 0:01:58]} Ng4 {[%emt 0:03:17]} 17. Qf4 {[%emt 0:00:10]} Qxf4 {[%emt 0:00:53]} 18. Bxf4 {[%emt 0:00:08]} Bc5+ {[%emt 0:00:13]} 19. Kh1 {[%emt 0:01:16]} Nf2+ {[%emt 0:00:46]} 20. Kg1 {[%emt 0:00:02]} Nh3+ {[%emt 0:00:52]} 21. Kh1 {[%emt 0:00:06]} Nxf4 {[%emt 0:00:19]} 22. Rxf4 {[%emt 0:00:33]} Be7 {[%emt 0:04:05]} 23. Rd1 {[%emt 0:04:52]} f5 {[%emt 0:05:20]} 24. Re1 {[%emt 0:01:56]} Kf7 {[%emt 0:00:23]} 25. Rf3 {[%emt 0:02:17]} Bf6 {[%emt 0:03:14]} 26. b3 {[%emt 0:10:34]} Rhd8 {[%emt 0:02:23]} 27. Kg1 {[%emt 0:04:48]} Rd2 {[%emt 0:02:03]} 28. Rc1 {[%emt 0:04:06]} e5 {[%emt 0:01:36]} 29. Rf2 {[%emt 0:02:05]} Rxf2 {[%emt 0:05:40]} 30. Kxf2 {[%emt 0:00:05]} e4 {[%emt 0:00:17]} 31. Ne2 {[%emt 0:00:52]} Rd8 {[%emt 0:00:26]} 32. Ke1 {[%emt 0:01:44]} Be5 {[%emt 0:01:58]} 33. g3 {[%emt 0:00:38]} g5 {[%emt 0:00:31]} 34. c4 f4 {[%emt 0:04:34]} 35. gxf4 {[%emt 0:11:47]} gxf4 {[%emt 0:00:08]} 36. Rc2 {[%emt 0:00:17]} Rd3 {[%emt 0:02:43]} 37. Kf2 {[%emt 0:00:58]} h5 {[%emt 0:04:38]} 38. Nc1 {[%emt 0:02:33]} Rf3+ {[%emt 0:11:02]} 39. Kg2 {[%emt 0:02:00]} Rc3 {[%emt 0:04:26]} 40. Rxc3 {[%emt 0:00:00]} Bxc3 {[%emt 0:00:00]} 41. c5 {[%emt 0:00:39]} Bd4 {[%emt 0:00:44]} 42. Kf1 {[%emt 0:01:50]} f3 {[%emt 0:00:00]} 43. Ne2 {[%emt 0:00:24]} fxe2+ 44. Kxe2 Bxc5 {[%emt 0:00:26]} 45. a3 {[%emt 0:00:29]} a5 {[%emt 0:00:31]} 46. b4 {[%emt 0:00:28]} axb4 {[%emt 0:00:06]} 47. axb4 Bxb4 {[%emt 0:00:06]} 48. Ke3 {[%emt 0:00:07]} c5 {[%emt 0:00:06]} 49. Kxe4 {[%emt 0:00:05]} Kg6 {[%emt 0:00:05]} 0-1

[Event "Polish Youth G16 Championship 2023"]
[Site "Jastrzebia Gora"]
[Date "2023.03.17"]
[Round "7.14"]
[White "Sliwicka, Weronika"]
[Black "Biniak, Zuzanna"]
[Result "1-0"]
[ECO "B75"]
[WhiteElo "1374"]
[BlackElo "1457"]
[Annotator "NA RC COMBH"]
[PlyCount "127"]
[EventDate "2023.03.11"]
[EventType "swiss"]
[EventCountry "POL"]
[SourceTitle "playchess.com"]
[Source "ChessBase"]
[SourceQuality "1"]
[TimeControl "40/5400+30:1800+30"]

1. e4 {[%emt 0:00:02]} c5 {[%emt 0:00:04]} 2. Nf3 {[%emt 0:00:03]} d6 {[%emt 0:00:06]} 3. d4 {[%emt 0:00:04]} cxd4 {[%emt 0:00:07]} 4. Nxd4 {[%emt 0:00:05]} Nf6 {[%emt 0:00:08]} 5. Nc3 {[%emt 0:00:06]} g6 {[%emt 0:00:12]} 6. Be3 {[%emt 0:00:26]} Bg7 {[%emt 0:00:10]} 7. f3 {[%emt 0:00:06]} h5 {[%emt 0:01:58]} 8. Qd2 {[%emt 0:00:43]} Nc6 {[%emt 0:00:10]} 9. O-O-O {[%emt 0:00:45]} Bd7 {[%emt 0:01:19]} 10. Kb1 {[%emt 0:00:36]} a6 {[%emt 0:00:10]} 11. Be2 {[%emt 0:02:15]} Rc8 {[%emt 0:00:44]} 12. Nd5 {[%emt 0:02:09]} Nxd5 {[%emt 0:12:33]} 13. exd5 {[%emt 0:01:22]} Ne5 {[%emt 0:01:23]} 14. Rhe1 {[%emt 0:31:17]} O-O {[%emt 0:26:15]} 15. Bh6 {[%emt 0:03:06]} Kh7 {[%emt 0:00:56]} 16. Bxg7 {[%emt 0:00:12]} Kxg7 {[%emt 0:00:01]} 17. Qg5 {[%emt 0:03:37]} e6 {[%emt 0:08:29]} 18. Qxd8 {[%emt 0:04:35]} Rfxd8 {[%emt 0:00:47]} 19. f4 {[%emt 0:00:44]} Nc4 {[%emt 0:00:49]} 20. Bxc4 {[%emt 0:00:40]} Rxc4 {[%emt 0:00:07]} 21. dxe6 {[%emt 0:00:20]} Bxe6 {[%emt 0:02:00]} 22. Rxe6 {[%emt 0:01:22]} Rxd4 {[%emt 0:01:30]} 23. Rxg6+ {[%emt 0:00:06]} fxg6 {[%emt 0:00:08]} 24. Rxd4 {[%emt 0:00:04]} Kf6 {[%emt 0:00:17]} 25. g3 {[%emt 0:01:05]} Kf5 {[%emt 0:04:23]} 26. h3 {[%emt 0:00:53]} Re8 {[%emt 0:01:26]} 27. Kc1 {[%emt 0:00:08]} Re3 {[%emt 0:01:25]} 28. Rd5+ {[%emt 0:00:58]} Ke6 {[%emt 0:00:43]} 29. Rd3 {[%emt 0:00:18]} Re2 {[%emt 0:00:10]} 30. Kd1 Rh2 31. h4 {[%emt 0:02:10]} Rg2 {[%emt 0:00:53]} 32. b3 {[%emt 0:00:34]} Kf5 {[%emt 0:01:03]} 33. Rxd6 {[%emt 0:04:52]} Rxg3 {[%emt 0:00:14]} 34. Rb6 {[%emt 0:00:54]} Kxf4 {[%emt 0:03:26]} 35. Rxb7 {[%emt 0:00:10]} Kg4 {[%emt 0:01:47]} 36. Rb4+ {[%emt 0:00:12]} Kh3 {[%emt 0:03:03]} 37. Ra4 {[%emt 0:00:26]} Rg1+ {[%emt 0:08:10]} 38. Kd2 {[%emt 0:01:04]} Rg2+ {[%emt 0:00:10]} 39. Kc1 {[%emt 0:01:25]} Rg1+ {[%emt 0:00:12]} 40. Kb2 {[%emt 0:00:00]} Rg2 {[%emt 0:00:00]} 41. Rxa6 {[%emt 0:07:12]} Kxh4 {[%emt 0:00:40]} 42. a4 {[%emt 0:00:16]} g5 {[%emt 0:00:57]} 43. Rg6 {[%emt 0:00:34]} Rf2 {[%emt 0:00:27]} 44. a5 {[%emt 0:00:24]} g4 {[%emt 0:04:44]} 45. a6 {[%emt 0:00:38]} Rf8 {[%emt 0:10:07]} 46. a7 {[%emt 0:04:22]} Ra8 {[%emt 0:10:39]} 47. Rg7 {[%emt 0:00:10]} g3 {[%emt 0:05:00]} 48. b4 {[%emt 0:00:06]} g2 {[%emt 0:00:41]} 49. Rxg2 {[%emt 0:00:06]} Rxa7 {[%emt 0:00:04]} 50. b5 {[%emt 0:00:28]} Kh3 {[%emt 0:00:40]} 51. Rg6 {[%emt 0:00:12]} h4 {[%emt 0:00:47]} 52. b6 {[%emt 0:00:20]} Rb7 {[%emt 0:00:18]} 53. c4 {[%emt 0:00:17]} Kh2 {[%emt 0:00:18]} 54. c5 {[%emt 0:00:08]} h3 {[%emt 0:00:07]} 55. Kb3 {[%emt 0:00:23]} Kh1 {[%emt 0:00:14]} 56. Kb4 {[%emt 0:00:04]} h2 {[%emt 0:00:09]} 57. Kb5 {[%emt 0:00:14]} Rh7 {[%emt 0:03:28]} 58. Rg5 {[%emt 0:01:08]} Rh6 {[%emt 0:00:26]} 59. Rd5 {[%emt 0:02:00]} Kg1 {[%emt 0:00:29]} 60. c6 {[%emt 0:02:35]} Rxc6 {[%emt 0:04:33]} 61. Rd1+ {[%emt 0:00:14]} Kg2 {[%emt 0:00:09]} 62. Kxc6 {[%emt 0:00:08]} h1=Q {[%emt 0:00:38]} 63. Rxh1 {[%emt 0:00:06]} Kxh1 {[%emt 0:00:05]} 64. b7 {[%emt 0:00:03]} 1-0

[Event "Polish Youth G16 Championship 2023"]
[Site "Jastrzebia Gora"]
[Date "2023.03.17"]
[Round "7.15"]
[White "Sprzeczka, Emilia"]
[Black "Domeradzka, Karolina"]
[Result "1-0"]
[ECO "C43"]
[WhiteElo "1887"]
[BlackElo "1194"]
[Annotator "NA RC COMBH"]
[PlyCount "61"]
[EventDate "2023.03.11"]
[EventType "swiss"]
[EventCountry "POL"]
[SourceTitle "playchess.com"]
[Source "ChessBase"]
[SourceQuality "1"]
[TimeControl "40/5400+30:1800+30"]

1. e4 {[%emt 0:00:03]} e5 {[%emt 0:00:01]} 2. Nf3 {[%emt 0:00:06]} Nf6 {[%emt 0:00:03]} 3. d4 {[%emt 0:00:24]} Nxe4 {[%emt 0:02:00]} 4. Bd3 {[%emt 0:00:43]} d5 {[%emt 0:03:40]} 5. Nxe5 {[%emt 0:00:19]} Bd6 {[%emt 0:02:58]} 6. O-O {[%emt 0:00:22]} O-O {[%emt 0:02:08]} 7. c4 {[%emt 0:01:29]} c6 {[%emt 0:06:04]} 8. cxd5 {[%emt 0:16:30]} (8. Nc3 $5 {[%cal Rc3e4]}) 8... cxd5 {[%emt 0:01:04]} 9. Nc3 {[%emt 0:04:17]} Nxc3 {[%emt 0:07:16]} 10. bxc3 {[%emt 0:00:08]} Nc6 {[%emt 0:06:11]} 11. f4 {[%emt 0:07:15]} f6 {[%emt 0:13:39]} 12. Qh5 {[%emt 0:04:07]} f5 {[%emt 0:05:00]} 13. Rf3 {[%emt 0:06:37]} Qe8 {[%emt 0:04:04]} 14. Qh3 {[%emt 0:04:28]} Rf6 {[%emt 0:02:05]} 15. Rg3 {[%emt 0:03:39]} Kh8 {[%emt 0:02:22]} 16. Rg5 {[%emt 0:04:01]} Rh6 {[%emt 0:07:09]} 17. Qf3 {[%emt 0:02:58]} Be7 {[%emt 0:02:31]} 18. Bxf5 {[%emt 0:17:44]} ({Better is} 18. Rg3 $16) 18... Bxg5 {[%emt 0:06:11]} 19. fxg5 {[%emt 0:00:30]} Nxe5 {[%emt 0:03:39]} 20. dxe5 {[%emt 0:00:21]} Rc6 {[%emt 0:00:59]} 21. Bc2 {[%emt 0:02:48]} Qg8 {[%emt 0:04:36]} 22. Ba4 {[%emt 0:02:13]} Rc7 {[%emt 0:00:48]} 23. Ba3 {[%emt 0:03:03]} Be6 {[%emt 0:00:49]} 24. Bd6 {[%emt 0:00:45]} Rf7 {[%emt 0:06:06]} 25. Qg3 {[%emt 0:01:02]} g6 {[%emt 0:03:44]} 26. Qe3 {[%emt 0:01:33]} a6 {[%emt 0:01:16]} 27. Rd1 {[%emt 0:01:00]} Rc8 {[%emt 0:00:47]} 28. Bb3 $11 {[%emt 0:00:21]} Rd7 {[%emt 0:02:38]} 29. Qd4 {[%emt 0:00:41]} Kg7 {[%emt 0:02:01]} 30. Bxd5 {[%emt 0:00:53]} Bxd5 {[%emt 0:00:16]} 31. e6# {[%emt 0:00:09]} 1-0

[Event "Polish Youth G16 Championship 2023"]
[Site "Jastrzebia Gora"]
[Date "2023.03.17"]
[Round "7.16"]
[White "Makarec, Anna"]
[Black "Nowak, Zuzanna"]
[Result "1-0"]
[ECO "C77"]
[WhiteElo "1271"]
[BlackElo "1427"]
[Annotator "NA RC COMBH"]
[PlyCount "107"]
[EventDate "2023.03.11"]
[EventType "swiss"]
[EventCountry "POL"]
[SourceTitle "playchess.com"]
[Source "ChessBase"]
[SourceQuality "1"]
[TimeControl "40/5400+30:1800+30"]

1. e4 {[%emt 0:00:03]} e5 {[%emt 0:00:04]} 2. Nf3 {[%emt 0:00:14]} Nc6 {[%emt 0:00:04]} 3. Bb5 {[%emt 0:00:13]} a6 {[%emt 0:00:06]} 4. Ba4 {[%emt 0:00:27]} Nf6 {[%emt 0:00:06]} 5. Bxc6 {[%emt 0:00:18]} dxc6 {[%emt 0:00:29]} 6. d3 {[%emt 0:00:15]} Bd6 {[%emt 0:03:54]} 7. Nbd2 {[%emt 0:01:01]} Bg4 {[%emt 0:00:56]} 8. h3 {[%emt 0:01:48]} Bd7 {[%emt 0:02:29]} 9. Nc4 {[%emt 0:01:50]} Qe7 {[%emt 0:02:43]} 10. a3 {[%emt 0:06:40]} h6 {[%emt 0:01:56]} 11. b3 {[%emt 0:00:45]} b5 {[%emt 0:01:13]} 12. Ne3 {[%emt 0:00:59]} O-O {[%emt 0:00:31]} 13. Bb2 {[%emt 0:00:53]} Rfe8 {[%emt 0:08:39]} 14. O-O {[%emt 0:03:03]} Nh5 {[%emt 0:03:23]} 15. Re1 {[%emt 0:13:52]} Nf4 {[%emt 0:09:52]} 16. d4 {[%emt 0:10:10]} exd4 {[%emt 0:10:24]} 17. Qxd4 {[%emt 0:01:32]} f6 {[%emt 0:01:16]} 18. Nf1 {[%emt 0:07:42]} Qf7 {[%emt 0:10:22]} 19. Ng3 {[%emt 0:08:57]} Ne6 {[%emt 0:11:00]} 20. Qc3 {[%emt 0:00:57]} Ng5 {[%emt 0:06:07]} 21. Nxg5 {[%emt 0:04:31]} hxg5 {[%emt 0:00:21]} 22. Qf3 {[%emt 0:00:44]} Be5 {[%emt 0:10:44]} 23. Bxe5 {[%emt 0:01:06]} Rxe5 {[%emt 0:00:02]} 24. Qd3 {[%emt 0:04:49]} Rae8 {[%emt 0:02:10]} 25. Rad1 {[%emt 0:00:51]} Bc8 {[%emt 0:00:14]} 26. Qc3 {[%emt 0:02:34]} c5 {[%emt 0:01:01]} 27. Rd5 {[%emt 0:04:35]} Rxd5 {[%emt 0:03:21]} 28. exd5 {[%emt 0:00:09]} Rxe1+ {[%emt 0:00:02]} 29. Qxe1 {[%emt 0:00:20]} Bb7 {[%emt 0:00:30]} 30. c4 {[%emt 0:00:29]} Kf8 {[%emt 0:01:26]} 31. Ne4 {[%emt 0:01:53]} Qe7 {[%emt 0:00:51]} 32. Qe3 {[%emt 0:00:22]} bxc4 {[%emt 0:02:47]} 33. bxc4 {[%emt 0:00:41]} Bc8 {[%emt 0:02:13]} 34. Qxc5 {[%emt 0:01:12]} Qxc5 {[%emt 0:00:25]} 35. Nxc5 {[%emt 0:00:07]} Ke7 {[%emt 0:00:03]} 36. Kf1 {[%emt 0:08:45]} Kd6 {[%emt 0:00:25]} 37. Nd3 {[%emt 0:01:16]} Bf5 {[%emt 0:00:31]} 38. Ke2 {[%emt 0:00:09]} Be4 {[%emt 0:03:15]} 39. f3 {[%emt 0:02:20]} Bf5 {[%emt 0:00:08]} 40. Ke3 {[%emt 0:00:00]} Bg6 {[%emt 0:00:00]} 41. Kd4 {[%emt 0:01:40]} Bf5 {[%emt 0:02:25]} 42. c5+ {[%emt 0:01:01]} Ke7 {[%emt 0:00:39]} 43. g4 {[%emt 0:04:56]} Bg6 {[%emt 0:00:27]} 44. f4 {[%emt 0:00:25]} Bxd3 {[%emt 0:00:32]} 45. Kxd3 {[%emt 0:00:23]} gxf4 {[%emt 0:00:11]} 46. h4 {[%emt 0:00:27]} Kd7 {[%emt 0:03:46]} 47. Ke4 {[%emt 0:00:14]} c6 {[%emt 0:00:14]} 48. d6 {[%emt 0:00:20]} Ke6 {[%emt 0:00:10]} 49. Kxf4 {[%emt 0:00:14]} f5 {[%emt 0:03:15]} 50. gxf5+ {[%emt 0:00:36]} Kf6 {[%emt 0:00:09]} 51. h5 {[%emt 0:00:27]} Kf7 {[%emt 0:00:12]} 52. Kg5 {[%emt 0:00:08]} a5 {[%emt 0:00:29]} 53. a4 {[%emt 0:01:34]} Kg8 {[%emt 0:01:05]} 54. f6 {[%emt 0:00:29]} 1-0

[Event "Polish Youth G16 Championship 2023"]
[Site "Jastrzebia Gora"]
[Date "2023.03.17"]
[Round "7.17"]
[White "Kaczmarek, Paulina"]
[Black "Michalska, Anna-Maria"]
[Result "1-0"]
[ECO "C02"]
[WhiteElo "1317"]
[BlackElo "1417"]
[Annotator "NA RC COMBH"]
[PlyCount "131"]
[EventDate "2023.03.11"]
[EventType "swiss"]
[EventCountry "POL"]
[SourceTitle "playchess.com"]
[Source "ChessBase"]
[SourceQuality "1"]
[TimeControl "40/5400+30:1800+30"]

1. e4 {[%emt 0:00:02]} e6 {[%emt 0:00:04]} 2. d4 {[%emt 0:00:15]} d5 {[%emt 0:00:05]} 3. e5 {[%emt 0:01:39]} c5 {[%emt 0:00:08]} 4. c3 {[%emt 0:00:03]} Nc6 {[%emt 0:00:07]} 5. Nf3 {[%emt 0:00:04]} Qb6 {[%emt 0:00:49]} 6. Bd3 {[%emt 0:00:43]} c4 {[%emt 0:04:14]} 7. Bc2 {[%emt 0:00:29]} Bd7 {[%emt 0:03:00]} 8. b3 {[%emt 0:03:53]} Na5 {[%emt 0:03:34]} 9. O-O {[%emt 0:02:23]} h6 {[%emt 0:01:41]} 10. Na3 {[%emt 0:02:35]} Bxa3 {[%emt 0:00:39]} 11. Bxa3 {[%emt 0:00:19]} Ne7 {[%emt 0:00:25]} 12. Bc5 {[%emt 0:01:23]} Qc7 {[%emt 0:00:53]} 13. b4 {[%emt 0:04:10]} Nac6 {[%emt 0:00:19]} 14. a4 {[%emt 0:00:34]} b6 {[%emt 0:02:50]} 15. Bd6 {[%emt 0:00:50]} Qd8 {[%emt 0:00:18]} 16. Nd2 {[%emt 0:05:14]} Nc8 {[%emt 0:00:23]} 17. b5 {[%emt 0:00:07]} Nxd6 {[%emt 0:00:21]} 18. bxc6 {[%emt 0:00:25]} Bxc6 {[%emt 0:00:18]} 19. exd6 {[%emt 0:00:12]} Qxd6 {[%emt 0:00:05]} 20. Qe2 {[%emt 0:01:00]} O-O {[%emt 0:00:28]} 21. Rfe1 {[%emt 0:01:04]} Rae8 {[%emt 0:00:32]} 22. Nf3 {[%emt 0:01:14]} f6 23. Bg6 {[%emt 0:02:00]} Re7 {[%emt 0:02:08]} 24. Nh4 {[%emt 0:00:43]} Be8 {[%emt 0:01:14]} 25. g3 {[%emt 0:04:41]} Bf7 {[%emt 0:03:14]} 26. Nf5 {[%emt 0:05:56]} exf5 {[%emt 0:00:37]} 27. Qxe7 {[%emt 0:00:07]} Qxe7 {[%emt 0:00:26]} 28. Rxe7 {[%emt 0:00:04]} Bxg6 {[%emt 0:00:06]} 29. Rxa7 {[%emt 0:01:05]} f4 {[%emt 0:05:31]} 30. Re1 {[%emt 0:03:57]} Be4 {[%emt 0:00:24]} 31. f3 {[%emt 0:03:55]} Bg6 {[%emt 0:19:51]} 32. Ree7 {[%emt 0:01:13]} Rf7 {[%emt 0:00:13]} 33. Rxf7 {[%emt 0:01:08]} Bxf7 {[%emt 0:00:06]} 34. Rb7 {[%emt 0:00:12]} Be8 {[%emt 0:00:31]} 35. Rxb6 {[%emt 0:00:28]} Bxa4 {[%emt 0:00:10]} 36. Rd6 {[%emt 0:00:02]} fxg3 {[%emt 0:00:54]} 37. hxg3 {[%emt 0:00:08]} Kf7 {[%emt 0:00:46]} 38. Rxd5 {[%emt 0:00:10]} Ke6 {[%emt 0:04:02]} 39. Rc5 {[%emt 0:00:30]} Bb3 {[%emt 0:00:25]} 40. Kf2 {[%emt 0:00:00]} Kd6 {[%emt 0:00:00]} 41. Ke3 {[%emt 0:01:53]} Ba2 {[%emt 0:07:29]} 42. f4 {[%emt 0:01:30]} Bb3 {[%emt 0:10:11]} 43. f5 {[%emt 0:01:44]} Bc2 {[%emt 0:00:57]} 44. Kf4 {[%emt 0:00:22]} Bd3 {[%emt 0:00:58]} 45. Ra5 {[%emt 0:00:51]} h5 {[%emt 0:00:59]} 46. Ra7 {[%emt 0:00:28]} g5+ {[%emt 0:00:48]} 47. fxg6 {[%emt 0:00:05]} Bxg6 {[%emt 0:00:11]} 48. Ra6+ {[%emt 0:01:05]} Ke7 {[%emt 0:01:02]} 49. g4 {[%emt 0:01:11]} hxg4 {[%emt 0:07:50]} 50. Kxg4 {[%emt 0:00:19]} Bd3 {[%emt 0:02:46]} 51. Kf4 {[%emt 0:00:35]} Bc2 {[%emt 0:04:03]} 52. Rc6 {[%emt 0:01:11]} Bd3 {[%emt 0:00:23]} 53. d5 {[%emt 0:00:21]} f5 {[%emt 0:09:42]} 54. Ke5 {[%emt 0:01:46]} Kd7 {[%emt 0:01:02]} 55. Rf6 {[%emt 0:00:36]} Be4 {[%emt 0:01:17]} 56. Rxf5 {[%emt 0:00:46]} Bd3 {[%emt 0:02:29]} 57. Rf7+ {[%emt 0:00:35]} Ke8 {[%emt 0:00:21]} 58. Rc7 {[%emt 0:00:11]} Kd8 {[%emt 0:00:24]} 59. d6 {[%emt 0:00:38]} Bf1 {[%emt 0:00:25]} 60. Kd4 {[%emt 0:00:12]} Be2 {[%emt 0:00:41]} 61. Kc5 {[%emt 0:02:11]} Bd3 {[%emt 0:01:42]} 62. Kb6 {[%emt 0:01:08]} Be2 {[%emt 0:00:36]} 63. Rg7 {[%emt 0:01:16]} Bd3 {[%emt 0:00:23]} 64. d7 {[%emt 0:00:19]} Bf5 {[%emt 0:00:50]} 65. Kc6 {[%emt 0:00:26]} Bh7 {[%emt 0:03:23]} 66. Kd6 {[%emt 0:00:32]} 1-0

[Event "Polish Youth G16 Championship 2023"]
[Site "Jastrzebia Gora"]
[Date "2023.03.17"]
[Round "7.18"]
[White "Dura, Anna"]
[Black "Predkiewicz, Paulina"]
[Result "1-0"]
[ECO "D31"]
[WhiteElo "1186"]
[BlackElo "1402"]
[Annotator "NA COMBH"]
[PlyCount "119"]
[EventDate "2023.03.11"]
[EventType "swiss"]
[EventCountry "POL"]
[SourceTitle "playchess.com"]
[Source "ChessBase"]
[SourceQuality "1"]
[TimeControl "40/5400+30:1800+30"]

1. d4 d5 2. c4 e6 3. Nc3 Be7 4. e3 Nf6 5. Nf3 O-O 6. Qc2 Nbd7 7. Bd3 h6 8. O-O Re8 9. b3 c5 10. cxd5 exd5 11. Bb2 b6 12. Rac1 Bb7 13. Rfd1 Rc8 14. Qe2 Bd6 15. Ba6 Bxa6 16. Qxa6 cxd4 17. Nxd4 Nc5 18. Qe2 Bb8 19. Nf3 Re7 20. Nb5 Rd7 21. Ne5 Bxe5 22. Bxe5 a6 23. Nc3 Nce4 24. f3 Nxc3 25. Rxc3 Nh7 26. Qxa6 Ra8 27. Qe2 Nf8 28. a4 Ne6 29. Rcd3 Nc5 30. Rc3 Qe7 31. Bd4 Rad8 32. Qb5 Rc8 33. b4 Rdc7 34. bxc5 bxc5 35. Bxg7 Kxg7 36. Rxd5 Qe6 37. Rd2 Qe5 38. Qb2 Kg8 39. Rcd3 Qe7 40. Qc3 Rb7 41. Rd4 cxd4 42. Qxc8+ Kh7 43. Qc2+ Kg8 44. e4 Rb4 45. Rd1 Qa7 46. Qd2 Rxa4 47. Qxh6 d3+ 48. Kh1 Ra1 49. Qg5+ Kh7 50. Qh4+ Kg8 51. Qd8+ Kh7 52. Qxd3 Qa6 53. Qd4 Qf1+ 54. Rxf1 Rxf1+ 55. Qg1 Rxg1+ 56. Kxg1 Kg6 57. Kf2 Kg5 58. Kg3 f5 59. f4+ Kf6 60. e5+ 1-0

[Event "Polish Youth G16 Championship 2023"]
[Site "Jastrzebia Gora"]
[Date "2023.03.17"]
[Round "7.19"]
[White "Krzysztynska, Maria"]
[Black "Zgoda, Aleksandra"]
[Result "1/2-1/2"]
[ECO "B40"]
[WhiteElo "1335"]
[BlackElo "1308"]
[Annotator "NA RC COMBH"]
[PlyCount "117"]
[EventDate "2023.03.11"]
[EventType "swiss"]
[EventCountry "POL"]
[SourceTitle "playchess.com"]
[Source "ChessBase"]
[SourceQuality "1"]
[TimeControl "40/5400+30:1800+30"]

1. e4 c5 {[%emt 0:00:16]} 2. Nf3 {[%emt 0:08:23]} e6 {[%emt 0:00:26]} 3. c3 d5 4. e5 {[%emt 0:07:11]} Nc6 {[%emt 0:04:17]} 5. d4 {[%emt 0:01:31]} Nge7 {[%emt 0:04:28]} 6. Bd3 {[%emt 0:02:28]} Ng6 {[%emt 0:08:03]} 7. h4 {[%emt 0:08:37]} cxd4 {[%emt 0:10:45]} 8. cxd4 {[%emt 0:01:10]} Bb4+ {[%emt 0:04:37]} 9. Nc3 {[%emt 0:00:55]} h5 {[%emt 0:05:35]} 10. Bd2 {[%emt 0:12:44]} Nge7 {[%emt 0:06:23]} 11. Bg5 {[%emt 0:08:04]} a6 {[%emt 0:05:21]} 12. Qd2 {[%emt 0:04:53]} b5 {[%emt 0:04:50]} 13. Rh3 {[%emt 0:06:19]} Qb6 {[%emt 0:11:23]} 14. a3 {[%emt 0:01:35]} Bxc3 {[%emt 0:00:27]} 15. bxc3 {[%emt 0:00:06]} Bb7 {[%emt 0:05:38]} 16. Bxe7 {[%emt 0:02:22]} Nxe7 {[%emt 0:00:37]} 17. Qg5 {[%emt 0:02:42]} Qa5 {[%emt 0:01:47]} 18. Rc1 {[%emt 0:04:45]} Qxa3 {[%emt 0:01:57]} 19. Kd2 {[%emt 0:04:18]} g6 {[%emt 0:07:41]} 20. Qf6 {[%emt 0:02:42]} Rf8 {[%emt 0:00:39]} 21. Ng5 {[%emt 0:02:19]} Nf5 {[%emt 0:00:42]} 22. Bxf5 {[%emt 0:05:52]} exf5 {[%emt 0:00:49]} 23. Re3 {[%emt 0:01:40]} Qe7 {[%emt 0:01:08]} 24. Qb6 {[%emt 0:01:39]} Rc8 {[%emt 0:00:42]} 25. e6 {[%emt 0:02:11]} f6 {[%emt 0:03:22]} 26. Nf7 {[%emt 0:01:11]} Rc6 {[%emt 0:01:24]} 27. Qa7 {[%emt 0:01:44]} Bc8 {[%emt 0:03:27]} 28. Qa8 {[%emt 0:01:30]} Qb7 {[%emt 0:02:51]} 29. Qxb7 {[%emt 0:00:43]} Bxb7 {[%emt 0:00:01]} 30. Nd8 {[%emt 0:02:12]} Rc7 {[%emt 0:01:40]} 31. Rce1 {[%emt 0:00:30]} Rg8 {[%emt 0:02:06]} 32. e7 {[%emt 0:02:13]} Bc8 {[%emt 0:02:03]} 33. Nf7 {[%emt 0:00:58]} Rc6 {[%emt 0:00:34]} 34. Nd8 {[%emt 0:00:43]} Rc7 {[%emt 0:00:19]} 35. Ne6 {[%emt 0:00:45]} Ra7 {[%emt 0:01:07]} 36. Nf4 {[%emt 0:00:45]} Rd7 {[%emt 0:00:29]} 37. Ne6 {[%emt 0:00:24]} Ra7 {[%emt 0:00:21]} 38. Nf4 {[%emt 0:00:32]} Rd7 {[%emt 0:00:09]} 39. Ne6 {[%emt 0:00:15]} g5 40. hxg5 {[%emt 0:00:00]} fxg5 {[%emt 0:00:00]} 41. Re5 {[%emt 0:03:00]} Ra7 {[%emt 0:16:27]} 42. Nd8 {[%emt 0:05:59]} Rg7 {[%emt 0:04:12]} 43. Nc6 {[%emt 0:02:23]} Ra8 {[%emt 0:03:59]} 44. Rxd5 {[%emt 0:03:35]} Bd7 {[%emt 0:01:07]} 45. Ne5 {[%emt 0:03:10]} Ra7 {[%emt 0:01:14]} 46. Nxd7 {[%emt 0:02:30]} Rxd7 {[%emt 0:00:01]} 47. Rxf5 {[%emt 0:00:12]} Rdxe7 {[%emt 0:00:08]} 48. Rxe7+ {[%emt 0:00:17]} Kxe7 {[%emt 0:00:01]} 49. Kc2 {[%emt 0:03:02]} Ke6 {[%emt 0:02:24]} 50. Rc5 {[%emt 0:01:18]} Kd6 {[%emt 0:01:31]} 51. Kb3 {[%emt 0:02:48]} h4 {[%emt 0:03:16]} 52. Kb4 Rf7 {[%emt 0:00:01]} 53. Rxg5 {[%emt 0:01:28]} Rxf2 {[%emt 0:00:02]} 54. Rg6+ {[%emt 0:04:17]} Kd5 {[%emt 0:02:49]} 55. Rg4 Kc6 {[%emt 0:00:01]} 56. Rxh4 {[%emt 0:01:51]} Rxg2 {[%emt 0:00:29]} 57. Rh6+ Kb7 58. d5 {[%emt 0:02:20]} Rg4+ {[%emt 0:01:09]} 59. Kb3 {[%emt 0:01:02]} 1/2-1/2

[Event "Polish Youth G16 Championship 2023"]
[Site "Jastrzebia Gora"]
[Date "2023.03.17"]
[Round "7.20"]
[White "Niedorys, Karolina"]
[Black "Butkiewicz, Hanna"]
[Result "1-0"]
[ECO "C50"]
[WhiteElo "1458"]
[BlackElo "1120"]
[Annotator "NA RC COMBH"]
[PlyCount "51"]
[EventDate "2023.03.11"]
[EventType "swiss"]
[EventCountry "POL"]
[SourceTitle "playchess.com"]
[Source "ChessBase"]
[SourceQuality "1"]
[TimeControl "40/5400+30:1800+30"]

1. e4 {[%emt 0:00:04]} e5 {[%emt 0:00:00]} 2. Nf3 Nc6 3. Bc4 {[%emt 0:00:23]} Bc5 {[%emt 0:00:30]} 4. d3 {[%emt 0:00:17]} h6 {[%emt 0:00:12]} 5. c3 {[%emt 0:00:25]} Nf6 {[%emt 0:00:03]} 6. Nbd2 {[%emt 0:08:57]} d6 7. O-O O-O {[%emt 0:01:05]} 8. h3 {[%emt 0:01:48]} Re8 {[%emt 0:00:57]} 9. Re1 {[%emt 0:01:03]} a6 {[%emt 0:07:29]} 10. Nf1 {[%emt 0:02:11]} Ne7 {[%emt 0:08:00]} 11. Qb3 {[%emt 0:08:21]} Rf8 {[%emt 0:01:09]} 12. d4 {[%emt 0:05:27]} exd4 {[%emt 0:01:19]} 13. cxd4 {[%emt 0:00:11]} Ba7 {[%emt 0:00:17]} 14. e5 {[%emt 0:09:35]} Nh7 {[%emt 0:02:06]} 15. Ng3 {[%emt 0:07:30]} d5 {[%emt 0:04:18]} 16. Bd3 {[%emt 0:00:42]} Re8 {[%emt 0:10:57]} 17. Qc2 {[%emt 0:17:44]} Nf8 {[%emt 0:00:43]} 18. Nh5 {[%emt 0:02:42]} Nc6 {[%emt 0:06:59]} 19. Qd2 {[%emt 0:03:17]} Nxd4 {[%emt 0:05:28]} 20. Nxd4 {[%emt 0:04:06]} Bxd4 {[%emt 0:00:05]} 21. Nxg7 {[%emt 0:00:48]} Kxg7 {[%emt 0:01:29]} 22. Qxh6+ {[%emt 0:00:06]} Kg8 {[%emt 0:00:18]} 23. Bg5 {[%emt 0:01:35]} Re6 {[%emt 0:02:31]} 24. Qh4 {[%emt 0:04:19]} Bxf2+ {[%emt 0:16:09]} 25. Kxf2 {[%emt 0:01:27]} Qe8 {[%emt 0:00:21]} 26. Bf6 {[%emt 0:00:59]} 1-0